bitfinex/quotes_SOLUSD_20250805
["timestamp","ask_amount","ask_price","bid_price","bid_amount"]
[1754365835052,0.07,168.27,168.26,17.3878411]
[1754365835205,0.07,168.27,168.26,32.49405667]
[1754365839827,0.07,168.27,168.26,21.8715603]
[1754365840129,0.07,168.27,168.26,32.49405667]
[1754365840831,0.07,168.27,168.26,10.76465794]
[1754365841005,0.76,168.27,168.23,78.36249637]
[1754365841215,0.69,168.26,168.23,52.36249637]
[1754365841534,0.69,168.26,168.23,10.62249637]
[1754365841829,0.07,168.27,168.23,10.62249637]
[1754365842029,0.07,168.27,168.24,11.30249637]
[1754365842239,0.07,168.27,168.24,17.24635166]
[1754365843001,0.07,168.27,168.24,0.14216157]
[1754365843205,0.76,168.27,168.24,10.76465794]
[1754365843406,0.69,168.26,168.22,16.56697078]
[1754365843617,0.69,168.25,168.23,0.14216157]
[1754365843825,0.69,168.25,168.22,16.56697078]
[1754365844616,0.69,168.25,168.22,17.24697078]
[1754365844820,10.69249637,168.27,168.22,17.24697078]
[1754365845023,0.69,168.26,168.22,17.24697078]
[1754365845941,0.69,168.25,168.22,0.14216157]
[1754365846122,16.63541223,168.27,168.23,0.68]
[1754365846320,17.32541223,168.27,168.23,0.68]
[1754365846528,0.69,168.26,168.23,0.68]
[1754365846724,0.69,168.26,168.22,16.70921795]
[1754365846930,0.69,168.26,168.22,17.38921795]
[1754365847512,0.69,168.25,168.22,6.76672158]
[1754365847715,0.69,168.25,168.22,0.14216157]
[1754365847919,11.31249637,168.24,168.2,0.14216157]
[1754365848133,10.62249637,168.23,168.18,17.24840756]
[1754365848330,0.69,168.22,168.18,17.24840756]
[1754365848644,0.69,168.22,168.19,0.14216157]
[1754365850523,0.69,168.21,168.17,5.94626581]
[1754365850825,0.69,168.21,168.17,16.56876218]
[1754365851028,0.69,168.21,168.17,17.24876218]
[1754365851943,158.82249637,168.22,168.18,0.68]
[1754365852320,159.51249637,168.22,168.18,6.62594884]
[1754365852528,148.2,168.22,168.19,0.68]
[1754365854116,148.2,168.22,168.19,6.62556121]
[1754365854317,148.2,168.22,168.2,0.68]
[1754365855239,148.2,168.22,168.19,5.94556121]
[1754365855448,148.2,168.22,168.19,6.62556121]
[1754365855754,148.89,168.22,168.19,5.94556121]
[1754365857544,148.2,168.22,168.18,16.62842484]
[1754365857725,0.69,168.21,168.18,6.00592847]
[1754365858128,0.69,168.2,168.18,6.00592847]
[1754365859027,189.9,168.22,168.18,16.62842484]
[1754365859233,189.9,168.22,168.19,0.72]
[1754365859432,11.30249637,168.21,168.18,0.06]
[1754365859637,10.62249637,168.19,168.18,0.06]
[1754365860042,11.30249637,168.19,168.18,0.06]
[1754365860961,17.24815306,168.19,168.18,0.06]
[1754365863561,11.30249637,168.19,168.18,0.06]
[1754365863861,52.34249637,168.19,168.18,0.06]
[1754365864746,53.02249637,168.19,168.18,0.06]
[1754365865457,11.30249637,168.19,168.18,0.06]
[1754365865754,53.02249637,168.19,168.18,0.06]
[1754365866060,52.34249637,168.19,168.18,0.06]
[1754365866643,53.02249637,168.19,168.18,0.06]
[1754365866848,58.96815306,168.19,168.18,0.06]
[1754365869068,53.02249637,168.19,168.18,0.06]
[1754365869850,42.4,168.19,168.18,0.06]
[1754365870166,52.34249637,168.19,168.18,0.06]
[1754365871069,41.72,168.19,168.18,0.06]
[1754365871280,6.62318316,168.26,168.18,11.40249637]
[1754365871582,10.62249637,168.24,168.19,11.34249637]
[1754365871894,41.72,168.23,168.2,0.72]
[1754365872049,41.72,168.23,168.2,6.66524657]
[1754365872249,41.72,168.23,168.21,0.72]
[1754365874764,53.02249637,168.23,168.18,26.06]
[1754365874969,10.62249637,168.2,168.18,0.06]
[1754365875393,11.30249637,168.2,168.18,0.06]
[1754365876202,10.62249637,168.19,168.18,0.06]
[1754365876489,201.20249637,168.19,168.18,0.06]
[1754365877791,207.14815306,168.19,168.18,0.06]
[1754365878371,207.19021437,168.19,168.18,0.06]
[1754365879901,200.52249637,168.19,168.18,0.06]
[1754365880408,202.90422937,168.19,168.18,0.06]
[1754365880988,203.58422937,168.19,168.18,0.06]
[1754365882004,55.38422937,168.19,168.18,0.06]
[1754365884097,61.32988606,168.19,168.18,0.06]
[1754365886305,54.70422937,168.19,168.18,0.06]
[1754365886674,13.00422937,168.19,168.18,0.06]
[1754365886868,52.32249637,168.19,168.18,0.78]
[1754365887697,52.32249637,168.19,168.18,0.06]
[1754365887911,53.00249637,168.19,168.18,0.06]
[1754365888101,58.94815306,168.19,168.18,0.06]
[1754365888286,61.33002706,168.19,168.18,0.06]
[1754365891911,55.38437037,168.19,168.18,0.06]
[1754365892205,55.42437037,168.19,168.18,0.06]
[1754365892990,61.37002706,168.19,168.18,0.06]
[1754365903100,61.37002706,168.19,168.16,0.06]
[1754365903101,15.10621557,168.18,168.16,0.06]
[1754365903305,67.44871194,168.17,168.16,0.06]
[1754365903633,68.16871194,168.17,168.16,0.06]
[1754365903798,69.83143694,168.17,168.16,0.06]
[1754365903999,70.55143694,168.17,168.16,0.06]
[1754365904524,76.49780073,168.17,168.16,0.06]
[1754365904835,80.45746409,168.17,168.16,0.06]
[1754365905743,91.87530436,168.17,168.16,0.06]
[1754365905913,102.49780073,168.17,168.16,0.06]
[1754365907102,101.77780073,168.17,168.16,0.06]
[1754365907700,54.72522137,168.17,168.16,0.78]
[1754365908131,52.34249637,168.17,168.16,0.78]
[1754365908917,10.62249637,168.17,168.16,0.78]
[1754365909099,52.34249637,168.17,168.16,0.78]
[1754365910331,41.72,168.17,168.16,0.78]
[1754365911232,41.72,168.17,168.16,6.72671741]
[1754365911725,41.72,168.17,168.16,0.78]
[1754365911921,15.013261,168.2,168.16,6.72671741]
[1754365912122,15.013261,168.2,168.17,11.34249637]
[1754365912328,56.733261,168.2,168.18,0.72]
[1754365912519,41.72,168.2,168.18,0.72]
[1754365913018,21.24499237,168.22,168.18,0.72]
[1754365913019,41.72,168.21,168.18,0.72]
[1754365913735,52.34249637,168.21,168.18,0.72]
[1754365913920,52.34249637,168.21,168.19,0.72]
[1754365914422,41.72,168.21,168.2,0.72]
[1754365914738,52.34249637,168.21,168.18,0.72]
[1754365914915,52.34249637,168.21,168.19,0.72]
[1754365916336,41.72,168.21,168.2,0.72]
[1754365916518,189.92,168.22,168.2,0.72]
[1754365917130,189.92,168.22,168.21,0.72]
[1754365917835,189.92,168.22,168.18,5.94596893]
[1754365918043,189.92,168.22,168.19,0.72]
[1754365919040,148.2,168.22,168.19,11.34249637]
[1754365919235,148.2,168.22,168.2,0.72]
[1754365920036,148.2,168.22,168.21,0.72]
[1754365922732,148.2,168.22,168.21,6.66494976]
[1754365924825,0.03,168.23,168.21,6.66494976]
[1754365925040,0.03,168.23,168.21,16.56744613]
[1754365925240,0.03,168.23,168.22,0.72]
[1754365925429,0.03,168.23,168.22,11.34249637]
[1754365926448,0.03,168.23,168.22,0.72]
[1754365927152,0.03,168.23,168.22,6.66459636]
[1754365929356,0.03,168.23,168.19,14.86358076]
[1754365929357,0.71,168.23,168.19,0.72]
[1754365929538,42.41,168.23,168.19,11.34249637]
[1754365930048,42.41,168.23,168.2,0.72]
[1754365930553,42.41,168.23,168.2,6.66515112]
[1754365932043,0.68,168.22,168.19,5.94552534]
[1754365932244,10.62249637,168.22,168.18,6.66600983]
[1754365932567,10.62249637,168.2,168.17,5.9463334]
[1754365932945,11.30249637,168.2,168.17,5.9463334]
[1754365933459,0.68,168.2,168.17,5.9463334]
[1754365934445,11.30249637,168.19,168.16,6.00665498]
[1754365934825,10.62249637,168.17,168.16,0.06]
[1754365935237,166.061927,168.22,168.16,11.40249637]
[1754365935450,0.71,168.23,168.21,10.62249637]
[1754365935451,0.03,168.23,168.21,10.62249637]
[1754365935657,0.03,168.23,168.22,11.34249637]
[1754365936537,0.03,168.23,168.22,17.28709273]
[1754365936869,0.03,168.23,168.22,6.66459636]
[1754365937057,0.03,168.23,168.22,17.28709273]
[1754365938033,0.03,168.23,168.21,5.94484804]
[1754365938633,0.03,168.23,168.21,6.66484804]
[1754365939361,0.03,168.23,168.18,26.72]
[1754365939544,0.68,168.22,168.18,17.28841666]
[1754365939737,41.71,168.23,168.19,0.72]
[1754365939945,42.39,168.23,168.19,6.66555241]
[1754365940865,41.71,168.23,168.2,11.34249637]
[1754365941030,0.03,168.23,168.21,0.72]
[1754365941463,0.03,168.23,168.22,11.34249637]
[1754365942164,0.03,168.23,168.22,6.66459636]
[1754365942564,0.03,168.23,168.21,16.56735735]
[1754365942764,0.03,168.23,168.21,17.28735735]
[1754365943757,0.03,168.23,168.22,0.72]
[1754365944172,0.03,168.23,168.22,6.66459636]
[1754365946882,0.03,168.23,168.2,0.72]
[1754365947049,0.03,168.23,168.2,10.62249637]
[1754365947247,0.03,168.23,168.21,0.72]
[1754365948472,0.03,168.23,168.2,10.62249637]
[1754365948646,0.03,168.23,168.22,11.32249637]
[1754365948848,0.03,168.23,168.22,17.26709273]
[1754365952861,0.03,168.23,168.22,17.4092543]
[1754365954079,148.23,168.25,168.24,26.0]
[1754365954279,0.03,168.26,168.25,0.14216157]
[1754365954466,0.03,168.26,168.25,17.40819434]
[1754365956866,0.69,168.26,168.21,0.7]
[1754365957175,0.66,168.25,168.23,26.0]
[1754365957350,0.03,168.26,168.23,26.0]
[1754365957351,0.03,168.26,168.24,10.62249637]
[1754365957556,0.03,168.26,168.24,11.32249637]
[1754365957757,0.03,168.26,168.24,0.7]
[1754365958177,0.03,168.26,168.25,5.9435364]
[1754365960166,0.03,168.26,168.24,5.94388968]
[1754365960483,0.03,168.26,168.24,17.26638605]
[1754365961277,0.03,168.26,168.24,6.64388968]
[1754365961469,0.03,168.26,168.24,5.94388968]
[1754365962356,0.03,168.26,168.24,6.64388968]
[1754365962684,0.03,168.26,168.25,0.7]
[1754365962866,0.03,168.26,168.25,11.32249637]
[1754365963684,0.03,168.26,168.25,11.46465794]
[1754365964686,0.03,168.26,168.25,17.40819434]
[1754365964865,0.03,168.26,168.25,32.51440991]
[1754365967266,1e-08,168.26,168.25,32.51440991]
[1754365968495,1e-08,168.27,168.26,0.14216157]
[1754365968670,1e-08,168.27,168.26,58.3878411]
[1754365968870,1e-08,168.28,168.27,15.24837714]
[1754365969084,1e-08,168.29,168.28,41.24837714]
[1754365969279,1e-08,168.29,168.28,52.57087351]
[1754365969692,0.03,168.31,168.29,15.10621557]
[1754365969874,0.1,168.37,168.33,26.0]
[1754365970082,0.1,168.37,168.35,10.62249637]
[1754365970502,0.76,168.37,168.35,10.62249637]
[1754365970794,0.76,168.37,168.35,16.56233772]
[1754365971000,0.1,168.37,168.35,16.56233772]
[1754365971181,0.1,168.37,168.36,11.32249637]
[1754365971368,0.1,168.37,168.36,53.00249637]
[1754365972975,0.1,168.37,168.36,58.94214949]
[1754365974004,0.1,168.37,168.36,58.24214949]
[1754365974297,0.1,168.37,168.36,47.61965312]
[1754365974498,0.1,168.37,168.36,58.24214949]
[1754365978878,0.78,168.37,168.35,5.93992337]
[1754365979088,0.1,168.37,168.36,10.62249637]
[1754365979407,0.1,168.37,168.36,68.19087351]
[1754365979976,0.1,168.37,168.36,94.19087351]
[1754365980181,0.1,168.37,168.36,68.19087351]
[1754365980776,0.1,168.37,168.36,74.13052663]
[1754365981888,0.1,168.37,168.36,73.47052663]
[1754365982200,0.78,168.37,168.36,26.0]
[1754365982508,0.78,168.37,168.35,41.66]
[1754365983085,0.1,168.37,168.36,11.28249637]
[1754365984286,0.1,168.37,168.36,26.53087351]
[1754365984492,0.1,168.38,168.37,41.10621557]
[1754365984672,0.1,168.38,168.37,94.08871194]
[1754365985082,0.1,168.38,168.37,100.02801229]
[1754365986994,0.1,168.38,168.37,100.17017386]
[1754365987190,0.1,168.39,168.38,0.14216157]
[1754365987503,1e-08,168.39,168.38,26.53087351]
[1754365988817,1e-08,168.39,168.38,32.46982112]
[1754365990282,1e-08,168.39,168.38,74.14982112]
[1754365990679,1e-08,168.39,168.38,73.48982112]
[1754365991010,1e-08,168.39,168.38,31.66765955]
[1754365991209,1e-08,168.39,168.38,74.02765955]
[1754365991590,1e-08,168.39,168.38,74.16982112]
[1754365995298,1e-08,168.39,168.38,84.79231749]
[1754365995989,1e-08,168.4,168.39,15.24837714]
[1754365996190,1e-08,168.4,168.39,37.15336988]
[1754365996902,1e-08,168.4,168.39,43.0919648]
[1754365997814,0.1,168.43,168.42,41.24837714]
[1754365998006,0.1,168.43,168.42,93.55087351]
[1754365998209,0.1,168.43,168.42,94.21087351]
[1754365998799,0.1,168.43,168.42,100.14841061]
[1754365999723,0.78,168.43,168.42,88.72375267]
[1754365999908,0.78,168.43,168.42,99.34624904]
[1754366000220,0.78,168.43,168.41,10.62249637]
[1754366000519,0.78,168.43,168.42,41.7]
[1754366000695,0.78,168.43,168.39,10.62249637]
[1754366000897,0.78,168.43,168.4,41.7]
[1754366001605,10.62249637,168.41,168.37,15.10621557]
[1754366001930,0.68,168.4,168.38,41.7]
[1754366002720,11.30249637,168.4,168.35,16.56217919]
[1754366002924,11.30249637,168.39,168.36,41.7]
[1754366003222,11.30249637,168.38,168.36,41.7]
[1754366003390,0.68,168.37,168.36,41.7]
[1754366007027,0.68,168.37,168.36,47.63965312]
[1754366007321,0.68,168.4,168.36,53.04249637]
[1754366007715,0.68,168.4,168.37,25.72871194]
[1754366007915,11.33249637,168.42,168.38,41.68]
[1754366008118,10.65249637,168.42,168.38,41.68]
[1754366008314,0.68,168.41,168.38,41.68]
[1754366008631,10.65249637,168.42,168.38,41.68]
[1754366008936,0.71,168.4,168.38,41.68]
[1754366010438,0.71,168.39,168.38,41.68]
[1754366010634,11.33249637,168.39,168.37,41.68]
[1754366010941,0.71,168.38,168.36,41.74]
[1754366011122,10.62249637,168.39,168.36,41.74]
[1754366011322,0.71,168.37,168.36,41.74]
[1754366013034,6.64930035,168.37,168.36,0.06]
[1754366013535,17.27179672,168.37,168.36,0.06]
[1754366014337,0.71,168.37,168.36,0.06]
[1754366015324,16.56157075,168.38,168.36,0.06]
[1754366015639,6.64830375,168.4,168.36,0.06]
[1754366015824,0.71,168.4,168.36,11.40249637]
[1754366016025,0.71,168.4,168.36,53.06249637]
[1754366016222,0.71,168.4,168.36,58.28211119]
[1754366016531,11.33249637,168.4,168.36,41.72]
[1754366016716,11.33249637,168.4,168.36,42.44]
[1754366017045,0.71,168.39,168.36,42.44]
[1754366017722,0.71,168.38,168.36,41.72]
[1754366018237,0.71,168.37,168.36,41.72]
[1754366018735,0.71,168.37,168.36,0.06]
[1754366019633,6.64835208,168.4,168.36,0.06]
[1754366019945,0.71,168.39,168.36,0.78]
[1754366020756,11.362497,168.42,168.37,10.62249637]
[1754366020920,0.03,168.42,168.38,52.98249637]
[1754366021118,0.03,168.42,168.39,0.72]
[1754366021322,0.03,168.42,168.4,52.28249637]
[1754366021618,0.03,168.42,168.4,41.66]
[1754366021945,0.74,168.42,168.4,41.66]
[1754366022329,0.03,168.42,168.4,41.66]
[1754366023440,0.03,168.42,168.4,47.5982312]
[1754366023652,0.03,168.42,168.4,48.3182312]
[1754366025032,0.03,168.42,168.41,0.72]
[1754366025229,0.03,168.42,168.41,26.59087351]
[1754366025747,0.03,168.42,168.41,15.96837714]
[1754366025916,0.03,168.42,168.41,26.59087351]
[1754366027234,0.03,168.42,168.41,32.52876318]
[1754366028030,0.03,168.42,168.41,21.04410524]
[1754366028219,0.03,168.42,168.41,5.93788967]
[1754366028672,0.74,168.42,168.39,41.10621557]
[1754366028857,0.71,168.41,168.39,41.66]
[1754366030241,0.03,168.42,168.39,41.66]
[1754366030441,11.36249637,168.42,168.39,41.66]
[1754366031333,10.62249637,168.4,168.38,0.06]
[1754366031534,0.71,168.41,168.38,0.06]
[1754366031535,10.62249637,168.39,168.38,0.06]
[1754366031739,11.33249637,168.39,168.38,0.06]
[1754366037676,17.27109129,168.39,168.38,0.06]
[1754366038734,35.11389629,168.39,168.38,0.06]
[1754366041645,61.11389629,168.39,168.38,0.06]
[1754366041936,79.9365887,168.39,168.36,0.06]
[1754366042259,5.93965312,168.36,168.31,0.06]
[1754366042432,10.62249637,168.32,168.31,0.06]
[1754366042861,11.28249637,168.32,168.31,0.06]
[1754366045142,10.62249637,168.32,168.31,0.06]
[1754366045541,17.223561,168.32,168.31,0.06]
[1754366045742,58.883561,168.32,168.31,0.06]
[1754366047457,58.883561,168.32,168.31,0.06]
[1754366048772,61.263592,168.32,168.31,0.06]
[1754366056275,27.18676338,168.3,168.29,0.06]
[1754366056475,94.86676338,168.3,168.29,0.06]
[1754366056654,95.52676338,168.3,168.29,0.06]
[1754366057390,101.47133938,168.3,168.29,0.06]
[1754366058849,100.81133938,168.3,168.29,0.06]
[1754366059057,58.24707237,168.3,168.29,0.78]
[1754366059673,52.30249637,168.3,168.29,0.78]
[1754366060464,41.68,168.3,168.29,0.78]
[1754366060657,52.30249637,168.3,168.29,0.78]
[1754366060856,10.62249637,168.31,168.29,0.78]
[1754366061077,41.68,168.3,168.29,0.78]
[1754366061466,10.62249637,168.34,168.29,17.34462008]
[1754366061779,41.68,168.33,168.3,11.34249637]
[1754366061990,41.68,168.34,168.3,10.62249637]
[1754366062296,52.30249637,168.34,168.31,0.72]
[1754366062877,52.30249637,168.34,168.31,6.66133627]
[1754366063079,52.30249637,168.34,168.32,0.72]
[1754366063285,41.68,168.34,168.32,0.72]
[1754366063491,10.62249637,168.37,168.32,11.34249637]
[1754366063668,10.62249637,168.37,168.33,0.72]
[1754366063873,41.68,168.36,168.33,0.72]
[1754366064466,52.30249637,168.36,168.33,0.72]
[1754366065062,52.30249637,168.36,168.34,0.72]
[1754366065794,52.30249637,168.36,168.32,0.72]
[1754366065959,52.30249637,168.36,168.31,16.56384457]
[1754366066159,52.30249637,168.36,168.32,0.72]
[1754366066378,41.68,168.36,168.32,0.72]
[1754366066683,5.93864297,168.39,168.33,5.94071169]
[1754366066889,52.30249637,168.38,168.33,16.56320806]
[1754366067061,10.62249637,168.37,168.34,0.72]
[1754366067660,10.62249637,168.37,168.35,0.72]
[1754366068288,52.30249637,168.38,168.36,0.72]
[1754366068496,10.62249637,168.4,168.36,0.72]
[1754366068669,52.28249637,168.39,168.37,0.72]
[1754366069462,10.62249637,168.38,168.37,0.72]
[1754366069662,41.66,168.39,168.37,0.72]
[1754366069862,10.62249637,168.38,168.37,0.72]
[1754366070074,41.66,168.39,168.37,0.72]
[1754366070283,10.62249637,168.38,168.37,0.72]
[1754366070581,10.62249637,168.38,168.35,5.93975791]
[1754366070783,10.62249637,168.38,168.36,0.72]
[1754366070974,10.62249637,168.37,168.34,0.72]
[1754366071172,52.28249637,168.37,168.34,6.66031167]
[1754366071689,52.28249637,168.37,168.35,0.72]
[1754366072588,52.28249637,168.37,168.33,6.66071169]
[1754366072786,52.28249637,168.37,168.33,5.94071169]
[1754366072990,52.28249637,168.37,168.34,0.72]
[1754366073601,10.62249637,168.36,168.34,0.72]
[1754366073891,11.30249637,168.36,168.32,6.66106319]
[1754366074396,11.30249637,168.36,168.33,0.72]
[1754366074685,11.30249637,168.35,168.31,6.72129759]
[1754366074995,11.30249637,168.35,168.32,0.72]
[1754366075167,10.62249637,168.35,168.32,0.72]
[1754366075366,52.28249637,168.35,168.32,0.72]
[1754366075674,10.62249637,168.34,168.32,0.72]
[1754366075884,10.62249637,168.33,168.31,0.06]
[1754366076078,11.30249637,168.33,168.31,0.06]
[1754366076277,10.62249637,168.32,168.31,0.06]
[1754366076578,42.34,168.33,168.31,0.06]
[1754366076789,10.62249637,168.32,168.31,0.06]
[1754366077998,11.30249637,168.32,168.31,0.06]
[1754366078990,17.243561,168.32,168.31,0.06]
[1754366083091,165.443561,168.32,168.31,0.06]
[1754366084294,164.763561,168.32,168.31,0.06]
[1754366084998,165.443561,168.32,168.31,0.06]
[1754366087606,164.763561,168.32,168.31,0.06]
[1754366088971,16.563561,168.32,168.31,0.06]
[1754366089600,26.0,168.29,168.18,0.06]
[1754366089802,26.0,168.29,168.18,6.0059303]
[1754366089803,10.62249637,168.22,168.18,6.0059303]
[1754366090104,52.36249637,168.22,168.18,0.06]
[1754366090302,53.04249637,168.22,168.18,6.00596267]
[1754366090681,52.36249637,168.22,168.18,6.72596267]
[1754366090910,52.36249637,168.22,168.19,0.72]
[1754366092884,58.30709273,168.22,168.19,0.72]
[1754366093185,58.98709273,168.22,168.18,0.06]
[1754366095797,69.6095891,168.22,168.18,0.06]
[1754366096006,10.62249637,168.19,168.18,0.06]
[1754366096189,52.36249637,168.19,168.18,0.06]
[1754366098905,52.36249637,168.19,168.18,0.76]
[1754366100605,10.62249637,168.23,168.18,17.32843489]
[1754366100806,58.30949037,168.22,168.19,0.7]
[1754366101022,10.62249637,168.2,168.18,0.06]
[1754366101179,10.62249637,168.19,168.18,0.76]
[1754366104113,52.36249637,168.2,168.18,0.76]
[1754366104410,52.36249637,168.2,168.18,6.70600619]
[1754366104702,148.2,168.21,168.19,0.7]
[1754366105092,158.82249637,168.21,168.18,6.70600619]
[1754366105606,158.82249637,168.21,168.19,0.7]
[1754366106411,158.82249637,168.21,168.19,6.6455901]
[1754366106791,148.2,168.21,168.2,0.7]
[1754366107910,10.62249637,168.26,168.2,11.46465794]
[1754366108109,41.72,168.25,168.21,11.32249637]
[1754366108412,41.72,168.25,168.22,0.7]
[1754366108595,41.72,168.25,168.22,6.64427794]
[1754366108796,41.72,168.25,168.23,0.7]
[1754366109001,41.74,168.26,168.24,0.7]
[1754366111414,41.72,168.27,168.25,0.7]
[1754366111608,158.82249637,168.28,168.25,0.7]
[1754366111806,148.2,168.28,168.26,0.7]
[1754366112011,189.92,168.28,168.26,0.7]
[1754366112193,11.30249637,168.3,168.27,0.7]
[1754366112194,41.72,168.29,168.27,0.7]
[1754366113030,41.72,168.3,168.28,0.7]
[1754366113524,41.72,168.3,168.26,0.7]
[1754366113820,41.72,168.3,168.25,10.62249637]
[1754366113821,41.72,168.3,168.27,0.7]
[1754366114020,41.75,168.3,168.27,0.7]
[1754366114801,42.43,168.3,168.26,5.94296709]
[1754366114996,53.05249637,168.3,168.26,5.94296709]
[1754366115523,0.03,168.28,168.26,5.94296709]
[1754366115708,0.03,168.28,168.25,6.6434908]
[1754366117516,0.03,168.28,168.25,5.9434908]
[1754366117721,0.03,168.28,168.26,0.7]
[1754366118498,0.03,168.28,168.26,6.64315909]
[1754366118699,0.03,168.28,168.26,0.7]
[1754366119232,0.03,168.28,168.26,6.64318189]
[1754366119729,0.03,168.28,168.26,0.7]
[1754366120027,0.03,168.28,168.25,5.94342174]
[1754366120204,0.03,168.28,168.25,6.64342174]
[1754366120404,0.03,168.28,168.26,0.7]
[1754366125341,0.03,168.28,168.27,0.7]
[1754366129246,0.03,168.28,168.25,6.60340646]
[1754366129444,0.03,168.28,168.25,5.94340646]
[1754366129445,0.74,168.28,168.25,5.94340646]
[1754366130013,0.74,168.28,168.24,6.60381253]
[1754366131431,0.74,168.28,168.21,52.34249637]
[1754366131432,10.62249637,168.26,168.21,52.34249637]
[1754366131626,10.62249637,168.26,168.22,0.66]
[1754366131940,53.01249637,168.27,168.22,0.66]
[1754366132928,53.01249637,168.27,168.22,6.60451632]
[1754366133131,53.01249637,168.27,168.22,17.22701269]
[1754366133343,53.01249637,168.27,168.23,6.6041387]
[1754366134335,0.71,168.26,168.21,6.08711133]
[1754366134550,10.62249637,168.26,168.21,6.08711133]
[1754366134860,42.39,168.27,168.22,0.66]
[1754366135035,52.30249637,168.27,168.22,11.28249637]
[1754366135212,52.30249637,168.27,168.23,0.66]
[1754366135420,53.01249637,168.27,168.23,0.66]
[1754366136646,53.01249637,168.27,168.23,6.60414527]
[1754366139379,52.30249637,168.27,168.23,6.60414527]
[1754366139744,53.01249637,168.27,168.23,6.60414527]
[1754366143259,52.30249637,168.27,168.23,6.60414527]
[1754366143466,0.71,168.26,168.23,6.60414527]
[1754366145871,11.33249637,168.26,168.23,6.60414527]
[1754366146488,10.62249637,168.26,168.23,6.60414527]
[1754366146667,53.01249637,168.27,168.23,6.60414527]
[1754366146868,41.68,168.27,168.24,11.28249637]
[1754366147170,0.03,168.28,168.25,0.66]
[1754366147790,0.03,168.28,168.24,10.62249637]
[1754366147791,0.03,168.28,168.26,0.66]
[1754366150667,0.03,168.28,168.27,0.66]
[1754366152597,0.03,168.28,168.27,6.60282997]
[1754366152792,0.03,168.28,168.27,17.22532634]
[1754366152993,0.03,168.28,168.27,32.47370348]
[1754366154099,0.03,168.28,168.26,5.9428827]
[1754366154606,0.71,168.27,168.23,26.0]
[1754366154796,11.33249637,168.27,168.22,0.66]
[1754366155000,11.33249637,168.26,168.22,6.60448864]
[1754366155172,11.33249637,168.26,168.21,25.72871194]
[1754366155173,11.33249637,168.25,168.21,5.94486657]
[1754366155500,11.33249637,168.25,168.21,6.60486657]
[1754366160632,10.62249637,168.23,168.2,41.66]
[1754366160915,10.62249637,168.21,168.19,0.06]
[1754366161091,11.30249637,168.2,168.19,0.06]
[1754366161617,0.68,168.2,168.19,0.06]
[1754366161794,11.30249637,168.21,168.19,0.06]
[1754366162189,0.68,168.21,168.19,0.06]
[1754366162592,52.96249637,168.24,168.2,0.69]
[1754366162792,52.96249637,168.24,168.19,10.68249637]
[1754366163008,52.28249637,168.24,168.19,10.68249637]
[1754366163206,0.68,168.23,168.19,0.75]
[1754366163497,52.28249637,168.24,168.19,0.75]
[1754366163498,0.68,168.22,168.19,0.75]
[1754366163693,10.62249637,168.22,168.19,0.06]
[1754366163911,0.68,168.21,168.19,0.06]
[1754366164523,10.62249637,168.22,168.19,0.06]
[1754366164714,11.30249637,168.22,168.19,0.06]
[1754366165998,0.68,168.21,168.19,0.06]
[1754366167289,10.62249637,168.2,168.19,0.06]